Cogmind - Beta 13 @@@ ROGUE MODE // 2024.06.13 @ 15:38:16 Player: Quiggsy Result: Destroyed by G-47 Trooper with Particle Gun Performance ------------- Evolutions (2) 1000 Regions Visited (4) 800 Robots Destroyed (60) 300 Value Destroyed (1880) 1880 Prototype IDs (1) 20 Alien Tech Used (0) 0 Bonus (149) 149 TOTAL SCORE: 4149 Bonus ------- High Alert Combat Kills 11 Follower Combat Kills 138 Cogmind --------- Core Integrity 0/550 Matter 105/300 Energy 45/100 System Corruption 8% Temperature Cool (9) Movement Core (350) Ox6 Location -8/Storage Parts ------- > --- POWER (2) -------- (None) > --- PROPULSION (4) --- (None) > --- UTILITY (2) ------ Large Storage Unit > --- WEAPON (3) ------- (None) > --- INVENTORY (15) --- Cryofiber Web Structural Scanner Improved Sensor Array Improved Terrain Scanner Improved Terrain Scan Processor Targeting Computer Targeting Computer Peak State ------------ > --- POWER ------------ Light Deuterium Engine Light Nuclear Core > --- PROPULSION ------- Light Treads Light Treads Light Treads Light Treads > --- UTILITY ---------- Large Storage Unit Improved Signal Interpreter > --- WEAPON ----------- Improved EM Shotgun Autogun Assault Cannon > --- INVENTORY -------- Improved Ion Engine VSS Leg VSS Leg Cryofiber Web Structural Scanner Improved Sensor Array Targeting Computer Targeting Computer Light Armor Plating Hardened Light Armor Plating Hardened Light Armor Plating Heavy Assault Rifle Light Cannon Shock Bomb Launcher Improved Datajack [Rating: 25] Favorites ----------- Power Improved Ion Engine Engine Improved Ion Engine Power Core Light Nuclear Core Propulsion Light Treads Treads Light Treads Leg VSS Leg Utility Large Storage Unit Device Sensor Array Storage Large Storage Unit Processor Improved Signal Interpreter Protection Hardened Light Armor Plating Weapon Light Assault Rifle Energy Gun Improved EM Shotgun Ballistic Gun Light Assault Rifle Ballistic Cannon Assault Cannon Launcher Grenade Launcher Slashing Weapon Katana Special Melee Weapon Improved Datajack Build | -11 -10 -9 -8 -8 ------- Run | Yrd Mat Mat Mat Sto Slots Evolved 4 | . . 2 2 . Power 1 | . . 1 . . Propulsion 2 | . . 1 1 . Utility . | . . . . . Weapon 1 | . . . 1 . Parts Attached 55 | 5 3 7 29 11 Power 10 | 1 . 2 5 2 Engine 8 | 1 . 2 3 2 Core 2 | . . . 2 . Reactor . | . . . . . Propulsion 16 | 2 . 3 9 2 Treads 14 | 2 . 3 9 . Leg 2 | . . . . 2 Wheel . | . . . . . Hover . | . . . . . Flight . | . . . . . Utility 9 | 1 1 1 3 3 Device 3 | . 1 1 1 . Storage 2 | 1 . . 1 . Processor 1 | . . . 1 . Hackware . | . . . . . Protection 3 | . . . . 3 Artifact . | . . . . . Weapon 20 | 1 2 1 12 4 Energy Gun 1 | . . . 1 . Energy Cannon . | . . . . . Ballistic Gun 10 | 1 1 1 6 1 Ballistic Cannon 3 | . . . 2 1 Launcher 3 | . 1 . 1 1 Special Weapon . | . . . . . Impact Weapon . | . . . . . Slashing Weapon 1 | . . . 1 . Piercing Weapon . | . . . . . Special Melee Weapon 2 | . . . 1 1 Unidentified Prototypes 1 | . . . 1 . Parts Lost 39 | . . 3 17 19 Power 7 | . . . 3 4 Propulsion 14 | . . 2 6 6 Utility 5 | . . 1 1 3 Weapon 13 | . . . 7 6 Highest Loss Streak 19 | . . 1 5 19 To Critical Strikes 1 | . . . . 1 Average Slot Usage (%) 91 | . 91 83 94 81 Engine 13 | . 14 19 12 8 Core 3 | . . . 5 6 Treads 31 | . 28 28 33 25 Device 3 | . 6 2 3 . Storage 10 | . 14 11 9 9 Processor 3 | . . . 4 6 Energy Gun 1 | . . . 2 7 Ballistic Gun 17 | . 17 22 18 8 Ballistic Cannon 2 | . . . 3 6 Launcher 2 | . 9 . 1 . Naked Turns . | . . . . . Heaviest Build 44 | 9 13 22 44 43 Greatest Support 80 | 40 40 60 80 80 Greatest Overweight (x) 1 | 1 . . 1 1 Average Overweight (x) . | . . . . . Largest Inventory Capacity 15 | 8 8 8 15 15 Average Capacity 12 | 7 8 8 14 15 Most Carried 15 | 3 5 8 15 15 Average Carried 9 | 1 3 6 11 13 Final Capacity 15 | 8 8 8 15 15 Final Carried 15 | 3 5 8 15 7 Class Distribution -------------------- 27% | Mutant 27% | Scavenger-Gunner 22% | Scavenger-Skirmisher 21% | Scavenger-Mutant Dominant Class ---------------- Mutant | -10/Materials Scavenger-Mutant | -9/Materials Scavenger-Skirmisher | -8/Materials Scavenger-Gunner | -8/Storage Resources | -11 -10 -9 -8 -8 ----------- Run | Yrd Mat Mat Mat Sto Matter Collected 1294 | 244 96 228 662 64 Remotely 80 | . 80 . . . Salvage Created 2361 | . 133 567 1361 300 Parts 136 | . 4 34 81 17 Haulers Intercepted 3 | . . 1 2 . Recyclers Shooed . | . . . . . Parts Field Recycled . | . . . . . Retrieved Matter . | . . . . . Parts Self-Destructed . | . . . . . Prevented . | . . . . . Kills | -11 -10 -9 -8 -8 ------- Run | Yrd Mat Mat Mat Sto Combat Hostiles Destroyed 45 | . 5 12 22 6 Melee 2 | . . . 2 . Guns 33 | . 4 12 14 3 Cannons 1 | . . . 1 . AOE 9 | . 1 . 5 3 Classes Destroyed 13 | . 2 5 6 . Worker 1 | . . . 1 . Builder 3 | . . . 3 . Hauler 3 | . . 1 2 . Recycler 2 | . . 1 1 . Mechanic 1 | . . . 1 . Operator 2 | . . . 1 1 Watcher 3 | . . 1 2 . Swarmer 9 | . 2 4 3 . Grunt 18 | . 3 3 9 3 Brawler 2 | . . . 1 1 Duelist 2 | . . 1 . 1 Sentry 12 | . . 4 7 1 Hunter 2 | . . . 2 . Best Kill Streak 9 | . 2 6 9 3 Combat Bots Only 6 | . 2 6 6 3 Max Kills in Single Turn 3 | . 1 1 3 2 Gunslinging . | . . . . . Exploded 2 | . 1 . 2 2 Melee 1 | . . . 1 . Uniques/NPCs Destroyed . | . . . . . Combat | -11 -10 -9 -8 -8 -------- Run | Yrd Mat Mat Mat Sto Hostile Shots Fired 436 | . 54 71 182 129 Missed 118 | . 24 18 42 34 Damage Taken 5035 | . 327 668 1935 2105 Core 691 | . 17 122 229 323 Absorbed by Shields . | . . . . . Regen/Repaired (Parts) 14 | . . . 14 . Core Remaining (%) 87 | 100 93 69 . . Volleys Fired 151 | . 16 44 68 23 Largest 3 | . 2 2 3 3 Hottest 112 | . 50 43 112 112 Shots Fired 321 | . 24 88 159 50 Gun 264 | . 20 88 125 31 Cannon 34 | . . . 17 17 Launcher 23 | . 4 . 17 2 Special . | . . . . . Kinetic 281 | . 20 88 138 35 Thermal . | . . . . . Explosive 4 | . 4 . . . Electromagnetic 36 | . . . 21 15 Robot Hit Streak 18 | . 8 12 18 6 Robot Miss Streak 6 | . 2 4 6 3 Penetration Max . | . . . . . Secondary Targets 3 | . . 3 . . Max Gunslinging Chain 1 | . . 1 . . Shots Hit Robots 235 | . 17 64 123 31 Core Hits 134 | . 11 33 72 18 Critical Kills . | . . . . . Critical Parts Destroyed 6 | . 2 . 3 1 Critical Strikes 9 | . 2 . 5 2 Destroy 6 | . 2 . 3 1 Blast 2 | . . . 1 1 Sever 1 | . . . 1 . Melee Attacks 16 | . . . 16 . Impact . | . . . . . Slashing 12 | . . . 12 . Piercing . | . . . . . Sneak Attacks . | . . . . . Combat Hostiles . | . . . . . Follow-up Attacks . | . . . . . Damage Inflicted 4500 | . 294 701 2612 893 Guns 2366 | . 143 701 1201 321 Cannons 473 | . . . 276 197 Explosions 1353 | . 151 . 827 375 Melee 306 | . . . 306 . Ramming 2 | . . . 2 . Kinetic 2638 | . 143 701 1448 346 Thermal 201 | . . . 74 127 Explosive 151 | . 151 . . . Electromagnetic 1202 | . . . 782 420 Impact . | . . . . . Slashing 306 | . . . 306 . Piercing . | . . . . . Highest Corruption 8 | . 2 . 2 8 Average Corruption 1 | . 2 . 1 3 Corruption Purged . | . . . . . Corruption Blocked . | . . . . . Effects 17 | . 1 . 9 7 Message Errors 2 | . . . 1 1 Matter Fused 3 | . . . 2 1 Heat Flow Errors 3 | . 1 . 1 1 Energy Discharges 1 | . . . . 1 Parts Fused 1 | . . . 1 . Data Loss (minor) 6 | . . . 3 3 Data Loss (major) 1 | . . . 1 . Overload Shots . | . . . . . Overflow Damage 25 | . . . 12 13 Projectiles 22 | . . . 12 10 Explosions 3 | . . . . 3 Melee . | . . . . . Knockbacks 9 | . . . 3 6 Impact . | . . . . . Kinetic 8 | . . . 3 5 Secondary 1 | . . . . 1 Self-Inflicted Damage 155 | . 15 . 39 101 Shots 8 | . 1 . 3 4 Rammed 3 | . . . 2 1 Targets Rammed 3 | . . . 2 1 Kicked . | . . . . . Crushed . | . . . . . Highest Temperature 391 | . 214 42 195 391 Average Temperature 75 | . 62 13 42 188 Received Heat Transfer 1656 | . 93 231 702 630 Effects 2 | . . . . 2 Shutdowns 2 | . . . . 2 Siege Activations . | . . . . . Robots Corrupted . | . . . . . Combat Hostiles . | . . . . . Parts Fried 3 | . . . 2 1 Impact Corruptions . | . . . . . Robots Melted . | . . . . . Combat Hostiles . | . . . . . Parts Melted 2 | . . . . 2 Heat Transferred 269 | . . . 100 169 Parts Sabotaged . | . . . . . Parts Stolen . | . . . . . Parts Stripped . | . . . . . Power Chain Reactions 6 | . . . 4 2 Alert | -11 -10 -9 -8 -8 ------- Run | Yrd Mat Mat Mat Sto Peak Influence 426 | . 233 362 426 368 Initial 164 | . . 13 152 164 Average 178 | . 83 185 200 244 Maximum Alert Level 2 | . 1 1 2 1 Low Security (%) 54 | 100 83 56 48 33 Level 1 44 | . 16 43 50 66 Level 2 . | . . . 1 . Level 3 . | . . . . . Level 4 . | . . . . . Level 5 . | . . . . . High Security . | . . . . . Max Security . | . . . . . Squads Dispatched 9 | . 1 1 4 3 Investigation 2 | . 1 . . 1 Extermination . | . . . . . Reinforcement 2 | . . 1 1 . Assault 2 | . . . . 2 Garrison 3 | . . . 3 . Intercept . | . . . . . Searches Triggered . | . . . . . Construction Impeded . | . . . . . Haulers Reinforced . | . . . . . Active Scanning Responses . | . . . . . Cargo Convoy Interrupts . | . . . . . Stealth | -11 -10 -9 -8 -8 --------- Run | Yrd Mat Mat Mat Sto Distress Signals 7 | . 2 2 3 . Communications Jammed . | . . . . . Distress Signals . | . . . . . Times Spotted 92 | . 12 22 39 19 Peak Tracking Total 8 | . 5 8 6 8 Tactical Retreats 3 | . 1 1 . 1 Traps | -11 -10 -9 -8 -8 ------- Run | Yrd Mat Mat Mat Sto Traps Triggered 3 | . 2 . . 1 Indirectly . | . . . . . Trap Hack Attempts . | . . . . . Triggered . | . . . . . Disarmed . | . . . . . Reprogrammed . | . . . . . Reused . | . . . . . Traps Extracted . | . . . . . Installed . | . . . . . Triggered . | . . . . . Machines | -11 -10 -9 -8 -8 ---------- Run | Yrd Mat Mat Mat Sto Machines Disabled 3 | . . . 1 2 Max in Single Turn 2 | . . . 1 2 Machines Repaired . | . . . . . Machines Dismantled . | . . . . . Machines Sabotaged . | . . . . . Overloaded Fab Kills . | . . . . . Hacking | -11 -10 -9 -8 -8 --------- Run | Yrd Mat Mat Mat Sto Machines Accessed 2 | . . . 2 . Terminals . | . . . . . Fabricators . | . . . . . Repair Stations 1 | . . . 1 . Recycling Units . | . . . . . Scanalyzers 1 | . . . 1 . Garrison Access . | . . . . . Total Hacks 4 | . . . 4 . Successful 2 | . . . 2 . Failed 2 | . . . 2 . Catastrophic . | . . . . . Database Lockouts . | . . . . . Manual . | . . . . . Terminals . | . . . . . Fabricators . | . . . . . Repair Stations 3 | . . . 3 . Recycling Units . | . . . . . Scanalyzers 1 | . . . 1 . Garrison Access . | . . . . . Terminal Hacks . | . . . . . Fabricator Hacks . | . . . . . Repair Station Hacks 2 | . . . 2 . Scan Component 1 | . . . 1 . Repair 1 | . . . 1 . Recycling Unit Hacks . | . . . . . Scanalyzer . | . . . . . Garrison Access Hacks . | . . . . . Unauthorized Hacks . | . . . . . Terminals . | . . . . . Fabricators . | . . . . . Repair Stations . | . . . . . Recycling Units . | . . . . . Scanalyzers . | . . . . . Garrison Access . | . . . . . Data Cores Recovered 2 | . . . 1 1 Used . | . . . . . Hacking Detections 1 | . . . 1 . Full Trace Events . | . . . . . Feedback Events . | . . . . . Feedback Blocked . | . . . . . Robot Schematics Acquired . | . . . . . Robots Built . | . . . . . Authchips . | . . . . . Time . | . . . . . Total Robot Build Rating . | . . . . . Part Schematics Acquired . | . . . . . Parts Built . | . . . . . Authchips . | . . . . . Time . | . . . . . Total Part Build Rating . | . . . . . Parts Repaired 1 | . . . 1 . Time 26 | . . . 26 . Parts Recycled . | . . . . . Recycled Matter . | . . . . . Retrieved Matter . | . . . . . Retrieved Components . | . . . . . Parts Scanalyzed . | . . . . . Part Schematics Acquired . | . . . . . Parts Damaged . | . . . . . Bothacking | -11 -10 -9 -8 -8 ------------ Run | Yrd Mat Mat Mat Sto Used RIF Installer . | . . . . . Robots Hacked 3 | . . . 3 . Non-combat 2 | . . . 2 . Combat 1 | . . . 1 . Robot Hacks Applied 3 | . . . 3 . parse_system 3 | . . . 3 . Relay Couplers Released . | . . . . . Fabnet Peak Effective % . | . . . . . Robots Rewired . | . . . . . Allies Hacked . | . . . . . Hacks Repelled . | . . . . . Allies | -11 -10 -9 -8 -8 -------- Run | Yrd Mat Mat Mat Sto Total Allies 2 | . . . . 2 Largest Group 2 | . . . . 2 Highest-Rated Group 62 | . . . . 62 Highest-Rated Ally 31 | . . . . 31 Total Orders . | . . . . . Ally Attacks 27 | . . . . 27 Total Damage 436 | . . . . 436 Kills 4 | . . . . 4 Allies Corrupted . | . . . . . Allies Melted . | . . . . . Intel | -11 -10 -9 -8 -8 ------- Run | Yrd Mat Mat Mat Sto Robot Analysis Total . | . . . . . Derelict Logs Recovered . | . . . . . Drone Launches . | . . . . . Drone Recoveries . | . . . . . Exploration | -11 -10 -9 -8 -8 ------------- Run | Yrd Mat Mat Mat Sto Turns Passed 2663 | 86 404 377 1526 270 Spaces Moved 1305 | 51 227 149 758 120 Core 7 | 7 . . . . Treads 1275 | 44 227 149 758 97 Legs 23 | . . . . 23 Wheels . | . . . . . Hover . | . . . . . Flight . | . . . . . Fastest Speed 50 | 50 160 160 160 90 Average Speed 159 | 149 160 160 160 158 Slowest Speed 240 | 160 160 160 240 240 Overloaded Moves . | . . . . . Propulsion Burnouts . | . . . . . Robots Hopped . | . . . . . Cave-ins Triggered . | . . . . . Exploration Rate (%) 28 | 4 46 19 55 19 Regions Visited 4 Branch Regions 1 Pre-discovered Areas . | . . . . . Known Exits Taken 1 | . . . 1 . Unknown Exits Taken 3 | 1 1 1 . . Scrap Searched . | . . . . . Spaces Dug . | . . . . . Terrain Destroyed 51 | . 23 . 17 11 Melee . | . . . . . Projectile 8 | . . . 2 6 AOE 43 | . 23 . 15 5 Terrain Rammed . | . . . . . Walls Destroyed . | . . . . . Machines Disabled . | . . . . . Actions | -11 -10 -9 -8 -8 --------- Run | Yrd Mat Mat Mat Sto Total 1599 | 58 247 210 923 161 Wait 21 | . . 1 20 . Move 1301 | 50 226 148 757 120 Hop . | . . . . . Pick Up 32 | 3 1 5 20 3 Fast Attach 31 | 5 3 7 13 3 Attach 21 | . . . 13 8 Detach 8 | . 1 1 6 . Swap 3 | . . . 3 . Drop 12 | . . 4 5 3 Fire 151 | . 16 44 68 23 Melee 16 | . . . 16 . Ram 1 | . . . . 1 Kick . | . . . . . Crush 2 | . . . 2 . Escape Stasis . | . . . . . Rewire . | . . . . . Trap . | . . . . . Miscellaneous . | . . . . . Route ------- -11/Scrapyard -10/Materials (discovered 2 exits: [*Mat] / [*Min]) -9/Materials -8/Materials -8/Storage History --------- Turn | Location | Event 20 | -11/Scrapyard | Discovered new exit (range 15) 87 | -11/Scrapyard | Entered Materials 320 | -10/Materials | Build established: Mutant 345 | -10/Materials | Discovered new exit (range 7) 463 | -10/Materials | Discovered new exit (range 8) 491 | -10/Materials | Entered another Materials area 491 | -9/Materials | Evolved 2 slots: Power x1, Propulsion x1 863 | -9/Materials | Discovered new exit (range 3) 868 | -9/Materials | Entered another Materials area 868 | -8/Materials | Evolved 2 slots: Propulsion x1, Weapon x1 1113 | -8/Materials | Repaired Sensor Array 1416 | -8/Materials | Build established: Scavenger-Skirmisher 1542 | -8/Materials | Lost 4 parts (1p1n1u1w) 1658 | -8/Materials | Lost 5 parts (3n2w) 1879 | -8/Materials | Garrison activated, responded to threat 1947 | -8/Materials | Lost 3 parts (1p1n1w) 2044 | -8/Materials | Lost 5 parts (1p1n3w) 2370 | -8/Materials | Discovered new exit (range 16) 2378 | -8/Materials | Build established: Scavenger-Gunner 2393 | -8/Materials | Identified exit to Storage 2394 | -8/Materials | Entered Storage 2415 | -8/Storage | Met a pair of Derelict thieves 2578 | -8/Storage | Core integrity fell below 50% 2630 | -8/Storage | Core integrity fell below 20% 2664 | -8/Storage | Destroyed by G-47 Trooper with Particle Gun Last Messages --------------- [Achievement: Let's See Who's Tougher] Katana fried. L-31 Rogue destroyed. Chain reaction triggered in Corrupted Imp. Ion Engine. VSS Leg destroyed. Destroyed VSS Leg. Heavy Doors breached. Imp. Ion Engine destroyed. Destroyed Imp. Ion Engine. Door malfunctions. System corrupted: Component data lost. B-36 Bruiser destroyed. Chain reaction triggered in Corrupted Rnf. Ion Engine. Y-45 Defender destroyed. Shock Bomb Launcher destroyed. Critical hit (Burn: +37). Imp. Datajack destroyed. Slammed into L-31 Rogue. Map ----- +----------------------------------------------------+ | ????????????????????????????????????? | | ????????????????????????????????????? | | ????????????????????????????????????? | | ????????????????????????????????????? | | ????????????????????????????????????? | | ????????????????????????????????????? | | ????????????????????????????????????? | | ????????????????????????????????????? | | ????????????????????????????????????? | | ????????????????????????????????????? | | ????????????????????????????????????? | | ????????????????????????????????????? | | ????????????????????????????????????? | | ????????????????????????????????????? | | ????????????????????????????????????? | | ????????????????????????????????????? | | ????????????????????????????????????? | | ????????????????????????????????????? | | ????????????????????????????????????? | | ?????????????????##########?????????? | | ?????????????????# #?????????? | | ????????########?# """#?????????? | | ????????# !### """#?????????? | | ????????# ! ! ## """#?????????? | | ????????#!! = #?# #?????????? | | ????????# /@! #?# """#?????????? | | ????????###"%l##?# """#?????????? | | ?????????#T!g%*#?# """#?????????? | | ?????????##[=[g#?# #?????????? | | ?????###### =g#########+############ | | ?????# [ m | | ?????# i ! ^ | | ?????# ^"" | | ?????# ########+#####" ######^ ^T" | | ?????# #??????? #???#"T#????# ^ "" | | ?????# #????????#???####????#^ | | ?????# #????????????????????# | | ?????# #????????????????????# """ | | ?????# #????????????????????# """ | | ?????# #????????????????????# """ | | ?????#####????????????????????+ | | ??????????????????????????????# | | ??????????????????????????????# ## | | ??????????????????????????????# ? | | ??????????????????????????????# # | | ??????????????????????????????# #? | | ??????????????????????????????? ??? | | ????????????????????????????????????? | | ????????????????????????????????????? | | ????????????????????????????????????? | +----------------------------------------------------+ Best States ------------- Heat Dissipation 31 Energy Generation 23 Energy Capacity 430 Matter Stores 300 Matter Capacity 300 Sight Range 16 Robot Scan Range 14 Terrain Scan Density 10 Armor Coverage 150 Evasion (%) 56 Recoil Reduction 4 Item Schematics ----------------- None Robot Schematics ------------------ None Fabricated ------------ Nothing Alien Tech Used ----------------- None Achievements -------------- Let's See Who's Tougher Challenges ------------ None Game ------ Seed ScrapHypercooledShielding Manual? 0 Play Time 00:46:25 Cumulative 5.7 hours Start 2024.06.07 @ 19:56:14 End 2024.06.13 @ 15:38:16 Sessions 3 Manual Loads 0 Difficulty Rogue Special Mode None Game No. 7 Rogue 7 Adventurer 0 Explorer 0 Win Type - Total 0 Types 0/0/0/0/0/0/0/0/0 Lore% 1 Gallery% 10 Achievement% 9 Wizard Run 0 Options --------- Layout 1 ASCII 0 Keyboard 0 Movement Arrows Keybinds 0 Fullscreen 2 Font 24/Cog Map View 50x35 Zoom Use 0% Tactical HUD 0 Map Filters NONE Filters NONE Steam 1 RUN: 33a0b56a-42a3-4a1d-a7f3-aa0bb5f40508